bitfinex/quotes_ETHUSD_20230905
["timestamp","ask_amount","ask_price","bid_price","bid_amount"]
[1693924323810,12.25902,1631.5,1631.2,7.72906769]
[1693924324015,12.25902,1631.5,1631.2,6.13041]
[1693924325546,7.89497,1631.6,1631.2,14.54058867]
[1693924325725,8.07187,1631.7,1631.2,23.58764917]
[1693924325926,6.12868,1631.7,1631.2,22.63189764]
[1693924326132,6.12867,1631.7,1631.3,1.06568832]
[1693924326318,6.12867,1631.7,1631.4,12.25909]
[1693924327348,6.12867,1631.7,1631.4,14.097993]
[1693924331473,12.25734,1631.7,1631.4,14.097993]
[1693924332536,12.25734,1631.7,1631.4,7.968413]
[1693924332836,12.25734,1631.7,1631.4,6.12951]
[1693924338279,18.38601,1631.7,1631.3,12.25964]
[1693924338783,18.38601,1631.7,1631.3,6.12981]
[1693924340488,18.38601,1631.7,1631.2,8.03863]
[1693924340652,23.27742426,1631.7,1631.2,1.9084]
[1693924340844,2.32774243,1631.6,1631.1,14.29573]
[1693924341049,12.25892,1631.5,1631.2,6.13036]
[1693924343079,18.38843,1631.5,1631.1,0.5124]
[1693924343380,18.38843,1631.5,1631.1,6.64317]
[1693924343881,3.06701426,1631.4,1630.9,1.1038421]
[1693924344051,18.69748143,1631.3,1630.8,1.8932]
[1693924344447,18.69748143,1631.3,1630.8,8.02504]
[1693924344687,18.69748143,1631.3,1630.8,14.15699]
[1693924344846,18.69748143,1631.3,1630.8,20.28894]
[1693924346756,18.69748143,1631.3,1630.8,14.15699]
[1693924346963,1.86974814,1631.2,1630.8,8.02504]
[1693924347163,6.1309,1631.1,1630.8,12.26379]
[1693924347374,12.2618,1631.1,1630.8,6.13184]
[1693924347962,6.1309,1631.1,1630.8,12.26379]
[1693924348783,12.26173,1631.1,1630.8,6.13184]
[1693924349447,6.13083,1631.1,1630.8,6.13184]
[1693924349651,12.26166,1631.1,1630.8,6.13184]
[1693924349877,12.26166,1631.1,1630.7,9.3804966]
[1693924350086,12.26166,1631.1,1630.8,6.13194]
[1693924350784,14.267506,1631.1,1630.7,7.7309966]
[1693924350985,14.267506,1631.1,1630.7,12.26424]
[1693924352427,24.78335026,1631.1,1630.6,1.8206]
[1693924352709,18.3949,1630.9,1630.6,1.8206]
[1693924353678,12.26325,1630.9,1630.6,1.8206]
[1693924354007,12.26325,1630.9,1630.6,7.95329]
[1693924354618,6.1316,1630.9,1630.6,14.086]
[1693924358213,8.03475,1631.1,1630.6,21.53671]
[1693924358420,14.16578,1631.1,1630.6,24.4391849]
[1693924359917,14.16578,1631.1,1630.6,26.0773849]
[1693924360122,14.16578,1631.1,1630.6,23.17491]
[1693924363144,1.9038,1631.1,1630.6,23.17491]
[1693924363293,1.9038,1631.1,1630.8,1.318]
[1693924363294,6.13085,1631.1,1630.8,1.318]
[1693924363494,6.13085,1631.1,1630.9,6.13158]
[1693924364589,6.13085,1631.1,1630.8,13.58164]
[1693924364824,6.13085,1631.1,1630.9,6.13158]
[1693924365926,6.13085,1631.1,1630.8,15.552892]
[1693924366137,6.13085,1631.1,1630.8,14.234892]
[1693924366835,6.13058,1631.2,1630.8,21.684842]
[1693924367040,12.26054,1631.3,1630.9,1.318]
[1693924367240,12.26054,1631.3,1631.0,6.13113]
[1693924367414,6.13023,1631.3,1631.0,14.938368]
[1693924368145,12.26054,1631.3,1631.0,14.938368]
[1693924368447,12.26054,1631.3,1631.0,13.58033]
[1693924368619,12.26054,1631.3,1631.0,7.44913]
[1693924369804,12.26054,1631.3,1631.0,6.13113]
[1693924372819,21.45786426,1631.3,1630.8,8.54752]
[1693924373613,21.45786426,1631.3,1630.8,6.13182]
[1693924373823,2.14578643,1631.2,1630.8,6.13182]
[1693924374121,12.2618,1631.1,1630.8,6.13182]
[1693924374514,12.2618,1631.1,1630.7,6.13219]
[1693924374515,18.3927,1631.1,1630.7,6.13219]
[1693924374716,20.129,1631.1,1630.6,10.76765718]
[1693924375343,23.19601426,1631.1,1630.6,2.09893718]
[1693924375649,23.19601426,1631.1,1630.5,12.36574]
[1693924375650,2.31960143,1631.0,1630.5,12.36574]
[1693924375812,12.26354,1630.9,1630.6,6.13269]
[1693924376649,12.26354,1630.9,1630.5,13.96486396]
[1693924376857,20.08111,1630.9,1630.5,7.83193396]
[1693924377153,20.08111,1630.9,1630.5,6.23283]
[1693924377448,21.49982605,1630.9,1630.6,1.06607506]
[1693924377870,21.49982605,1630.9,1630.5,2.34198119]
[1693924378070,21.49982605,1630.9,1630.6,1.0660815]
[1693924379145,21.49982605,1630.9,1630.5,0.1]
[1693924379350,21.49982605,1630.9,1630.5,7.94200108]
[1693924379551,2.14998261,1630.8,1630.6,1.06609211]
[1693924379760,6.13233,1630.7,1630.6,1.06609211]
[1693924380558,6.13233,1630.7,1630.5,7.83217222]
[1693924381054,12.26466,1630.7,1630.5,1.69912222]
[1693924381257,12.26466,1630.7,1630.5,0.1]
[1693924381258,18.39699,1630.7,1630.5,0.1]
[1693924381432,1.226466,1630.6,1630.5,0.1]
[1693924381763,19.624596,1630.6,1630.5,0.1]
[1693924383122,20.942596,1630.6,1630.5,0.1]
[1693924383554,30.075306,1630.6,1630.5,0.1]
[1693924383854,30.075306,1630.6,1630.4,0.1]
[1693924384056,7.39254486,1630.5,1630.4,0.1]
[1693924384357,25.79178486,1630.5,1630.4,0.1]
[1693924385060,26.75548786,1630.5,1630.4,0.1]
[1693924393197,18.34070486,1630.5,1630.4,0.1]
[1693924393402,18.34070486,1630.5,1630.4,1.16630492]
[1693924394300,17.70092853,1630.5,1630.4,1.16630492]
[1693924394503,15.33317426,1630.5,1630.4,1.16630492]
[1693924394663,21.46625426,1630.5,1630.4,0.1]
[1693924394868,21.46625426,1630.5,1630.4,1.16630335]
[1693924395202,21.46625426,1630.5,1630.4,0.1]
[1693924404091,25.78425426,1630.5,1630.4,0.1]
[1693924404396,30.01190829,1630.5,1630.4,0.1]
[1693924406995,31.32990829,1630.5,1630.4,0.1]
[1693924407196,3.0,1630.0,1629.9,0.1]
[1693924407361,8.70301426,1630.0,1629.9,0.1]
[1693924407567,34.11315569,1630.0,1629.9,0.1]
[1693924407788,37.11315569,1630.0,1629.9,0.1]
[1693924408170,37.59315569,1630.0,1629.7,0.1]
[1693924408397,31.92789426,1629.8,1629.7,0.1]
[1693924408700,28.79217426,1629.8,1629.7,0.1]
[1693924408941,31.97139169,1629.8,1629.7,0.1]
[1693924409505,9.20273426,1629.8,1629.7,0.1]
[1693924409711,6.13572,1629.8,1629.7,0.1]
[1693924409922,12.27144,1629.8,1629.7,0.1]
[1693924410125,6.13572,1629.8,1629.7,0.1]
[1693924410725,3.0,1630.1,1629.8,1.13782371]
[1693924410726,6.13475,1630.1,1629.8,1.13782371]
[1693924410923,6.13503,1630.0,1629.8,2.62062408]
[1693924411138,15.33707426,1630.0,1629.8,1.13782371]
[1693924411909,21.47210426,1630.0,1629.8,1.13782371]
[1693924413413,15.33707426,1630.0,1629.8,1.13782371]
[1693924413616,3.06701426,1630.0,1629.8,1.13782371]
[1693924413829,12.26955,1630.1,1629.8,7.27347371]
[1693924414035,12.26955,1630.1,1629.8,8.62441008]
[1693924414036,15.33656426,1630.1,1629.8,8.62441008]
[1693924414547,9.20235426,1629.9,1629.7,0.1]
[1693924414712,17.00073426,1629.8,1629.7,0.1]
[1693924415074,29.27217426,1629.8,1629.7,0.1]
[1693924415214,29.83945681,1629.8,1629.7,0.1]
[1693924418075,30.39245681,1629.8,1629.7,0.1]
[1693924418238,35.29687529,1629.8,1629.6,0.1]
[1693924418435,4.93801426,1629.7,1629.6,0.1]
[1693924418640,26.34628426,1629.7,1629.6,0.1]
[1693924425361,26.82628426,1629.7,1629.6,0.1]
[1693924428392,26.82628426,1629.7,1629.5,0.1]
[1693924428589,27.15905269,1629.6,1629.5,0.1]
[1693924438089,28.49505269,1629.6,1629.5,0.1]
[1693924441019,28.97791218,1629.6,1629.5,0.1]
[1693924444739,6.13629,1629.7,1629.5,0.1]
[1693924445040,6.13633,1629.7,1629.5,0.1]
[1693924445245,12.27271,1629.7,1629.5,0.1]
[1693924447804,21.47610426,1629.7,1629.5,0.1]
[1693924448026,3.06701426,1629.6,1629.5,0.1]
[1693924448213,23.75763469,1629.6,1629.5,0.1]
[1693924448813,21.47642426,1629.6,1629.5,0.1]
[1693924450699,21.47642426,1629.6,1629.5,1.16696053]
[1693924452304,21.47642426,1629.6,1629.5,1.8098195]
[1693924456453,21.47642426,1629.6,1629.5,1.16696053]
[1693924460432,21.47642426,1629.6,1629.5,1.16695929]
[1693924460632,24.37129969,1629.6,1629.5,1.16695929]
[1693924461535,24.37129969,1629.6,1629.5,0.1]
[1693924469177,21.47642426,1629.6,1629.5,0.1]
[1693924476014,25.75091273,1629.6,1629.5,0.1]
[1693924476225,27.08691273,1629.6,1629.5,0.1]
[1693924476539,28.68230472,1629.6,1629.5,0.1]
[1693924477618,27.40781625,1629.6,1629.5,0.1]
[1693924477815,31.11223303,1629.6,1629.5,0.1]
[1693924478406,30.08412359,1629.6,1629.5,0.1]
[1693924478750,30.56412359,1629.6,1629.5,0.1]
[1693924479483,4.336,1629.5,1629.4,0.1]
[1693924479689,31.46427554,1629.5,1629.4,0.1]
[1693924479934,38.78313281,1629.5,1629.4,0.1]
[1693924480705,38.78313281,1629.5,1629.3,0.1]
[1693924480901,29.18001027,1629.4,1629.3,0.1]
[1693924481343,28.46492126,1629.4,1629.2,0.1]
[1693924481658,4.34888915,1629.3,1629.2,0.1]
[1693924481861,29.21636877,1629.3,1629.2,0.1]
[1693924482714,30.55236877,1629.3,1629.2,0.1]
[1693924484437,29.27049388,1629.3,1629.2,0.1]
[1693924485049,30.55236877,1629.3,1629.2,0.1]
[1693924485347,29.83777643,1629.3,1629.2,0.1]
[1693924485543,31.11965132,1629.3,1629.2,0.1]
[1693924486047,29.83777643,1629.3,1629.2,0.1]
[1693924489438,29.76072141,1629.3,1629.2,0.1]
[1693924489747,29.28072141,1629.3,1629.2,0.1]
[1693924490817,29.76072141,1629.3,1629.2,0.1]
[1693924506194,24.47981426,1629.3,1629.2,0.1]
[1693924506769,25.44197588,1629.3,1629.2,0.1]
[1693924507958,22.44197588,1629.3,1629.2,0.1]
[1693924508358,16.30437588,1629.3,1629.2,0.1]
[1693924508578,22.44197588,1629.3,1629.2,0.1]
[1693924509277,25.50754441,1629.3,1629.2,0.1]
[1693924511271,26.84354441,1629.3,1629.2,0.1]
[1693924513711,27.32354441,1629.3,1629.2,0.1]
[1693924514909,27.89082696,1629.3,1628.9,0.1]
[1693924515208,25.89092,1629.0,1628.9,0.1]
[1693924515406,33.18972769,1629.0,1628.9,0.1]
[1693924515580,33.18972769,1629.0,1628.8,0.1]
[1693924515581,46.37574024,1629.0,1628.8,0.1]
[1693924515787,21.96434426,1628.9,1628.8,0.1]
[1693924515981,25.82034426,1628.9,1628.8,0.1]
[1693924516186,26.30034426,1628.9,1628.1,7.74839245]
[1693924516377,26.30034426,1628.9,1628.0,0.1]
[1693924516378,6.06701426,1628.2,1628.0,0.1]
[1693924516577,3.0,1627.8,1627.6,1.23399458]
[1693924516803,29.84169559,1628.1,1627.6,0.0630506]
[1693924517009,21.49790426,1627.7,1627.6,0.0630506]
[1693924517335,6.14266,1628.0,1627.6,6.2070606]
[1693924517622,12.28584,1627.9,1627.6,0.0630506]
[1693924517774,9.20989426,1627.9,1627.6,1.3990506]
[1693924517976,5.458974,1628.5,1627.6,1.3990506]
[1693924518287,6.14064,1628.5,1627.9,3.0]
[1693924518473,10.59639048,1628.7,1628.2,1.336]
[1693924518679,10.59639048,1628.7,1628.0,7.47847]
[1693924518680,6.13958,1628.8,1628.3,13.61855]
[1693924518887,6.13958,1628.8,1628.4,1.361855]
[1693924519182,12.27916,1628.8,1628.4,1.361855]
[1693924519696,12.27916,1628.8,1628.3,6.14118]
[1693924520212,6.13958,1628.8,1628.3,14.28495]
[1693924520397,6.13958,1628.8,1628.3,15.62095]
[1693924521393,6.1393,1628.9,1628.5,1.336]
[1693924521716,6.13912,1628.9,1628.6,1.336]
[1693924521912,6.13912,1628.9,1628.6,2.08364]
[1693924522581,6.13879,1629.0,1628.6,8.22376]
[1693924522782,9.20580426,1629.0,1628.6,8.22376]
[1693924522978,9.20580426,1629.0,1628.6,8.88166]
[1693924523295,15.34486426,1629.0,1628.6,1.9939]
[1693924523709,3.06701426,1628.9,1628.6,1.9939]
[1693924523914,6.13948,1628.8,1628.6,1.9939]
[1693924524423,9.20628426,1628.9,1628.6,1.9939]
[1693924524584,6.13927,1628.9,1628.6,1.9939]
[1693924524916,6.13927,1628.9,1628.6,3.60847]
[1693924525796,3.06701426,1628.8,1628.6,3.60847]
[1693924526001,9.20675426,1628.8,1628.6,1.9939]
[1693924528935,3.06701426,1628.8,1628.6,1.9939]
[1693924529523,12.27858,1628.9,1628.6,1.9939]
[1693924529826,9.20628426,1628.9,1628.6,1.9939]
[1693924530227,9.20628426,1628.9,1628.6,3.421382]
[1693924530424,15.34564426,1628.9,1628.6,1.9939]
[1693924530623,9.20671426,1628.8,1628.6,1.9939]
[1693924532137,0.27238421,1628.7,1628.6,1.9939]
[1693924532441,0.27548346,1628.7,1628.6,1.9939]
[1693924532646,0.27548346,1628.7,1628.5,6.14038]
[1693924532804,0.27548346,1628.7,1628.5,7.518982]
[1693924533423,0.27548346,1628.7,1628.4,15.84416]
[1693924533624,0.27548346,1628.7,1628.4,15.84411]
[1693924533839,0.27548346,1628.7,1628.4,8.19849]
[1693924534047,6.41535346,1628.7,1628.4,8.19849]
[1693924538340,4.93801426,1628.6,1628.4,2.0577]
[1693924538540,4.93801426,1628.6,1628.0,6.1423]
[1693924538541,18.42186,1628.5,1628.0,6.1423]
[1693924538740,18.42186,1628.5,1628.0,1.9948]
[1693924538741,18.42432,1628.3,1628.0,1.9948]
[1693924538943,6.14212,1628.1,1628.0,1.9948]
[1693924539319,6.14212,1628.1,1627.8,6.14325]
[1693924539524,12.28730251,1628.1,1627.7,8.27328]
[1693924539739,12.28730251,1628.1,1627.7,9.83266274]
[1693924540046,3.06701426,1628.0,1627.7,2.1299]
[1693924540252,18.42864,1627.9,1627.7,2.1299]
[1693924540496,21.49869998,1627.9,1627.6,0.0630506]
[1693924540807,3.06701426,1627.8,1627.6,0.0630506]
[1693924540983,18.43089,1627.7,1627.6,0.0630506]
[1693924541153,21.49790426,1627.7,1627.6,0.0630506]
[1693924541504,24.26509964,1627.7,1627.6,0.0630506]
[1693924541808,26.13609964,1627.7,1627.6,0.0630506]
[1693924542202,35.27972964,1627.7,1627.6,0.0630506]
[1693924542405,38.75972964,1627.7,1627.5,0.1]
[1693924542700,6.06701426,1627.6,1627.5,0.1]
[1693924542853,24.49904426,1627.6,1627.5,0.1]
[1693924543049,15.35503426,1627.6,1627.5,0.1]
[1693924543245,21.49904426,1627.6,1627.5,0.1]
[1693924543449,24.56666226,1627.6,1627.5,0.1]
[1693924543649,18.42265226,1627.6,1627.5,0.1]
[1693924544114,12.29106158,1627.6,1627.5,0.1]
[1693924544350,6.14705158,1627.6,1627.5,0.1]
[1693924546140,0.00304158,1627.6,1627.5,0.1]
[1693924546493,6.14401,1627.6,1627.5,0.1]
[1693924547091,12.28802,1627.6,1627.5,0.1]
[1693924547498,6.14701203,1627.6,1627.5,0.1]
[1693924547697,9.14263,1628.0,1627.6,0.63782707]
[1693924547698,9.14266,1628.0,1627.6,0.63782707]
[1693924548040,12.28544,1628.0,1627.6,14.41539778]
[1693924548844,6.14221,1628.1,1627.6,22.43040778]
[1693924549007,6.14221,1628.1,1627.7,1.871]
[1693924549345,6.14191,1628.2,1627.8,14.15744]
[1693924549759,12.28313,1628.3,1627.8,14.15744]
[1693924549760,12.28302,1628.3,1627.9,1.871]
[1693924550052,0.27851326,1628.1,1627.8,8.01418]
[1693924550263,0.27851326,1628.1,1627.7,6.14342]
[1693924550264,6.1425,1628.0,1627.7,6.14342]
[1693924550407,6.1425,1628.0,1627.7,6.14362]
[1693924550962,6.14233,1628.1,1627.7,20.30188]
[1693924551253,12.28473,1628.1,1627.6,17.19336778]
[1693924551401,18.42713,1628.1,1627.7,1.71933678]
[1693924551601,18.42713,1628.1,1627.7,7.86291678]
[1693924556036,6.14233,1628.1,1627.7,7.86291678]
[1693924556241,6.14154,1628.3,1627.7,26.59617678]
[1693924556410,12.28232,1628.4,1628.0,12.28464]
[1693924556611,6.14067,1628.5,1628.1,1.871]
[1693924556812,6.14047,1628.6,1628.2,14.15434]
[1693924557347,6.14067,1628.5,1628.2,14.15434]
[1693924557502,6.14067,1628.5,1628.2,12.28334]
[1693924557705,6.14067,1628.5,1628.3,1.228334]
[1693924558038,6.14046,1628.6,1628.3,9.240684]
[1693924558243,6.83321471,1629.4,1628.6,3.0]
[1693924558244,10.7310737,1629.4,1628.6,3.0]
[1693924558401,10.7310737,1629.4,1628.6,27.93316426]
[1693924558402,6.13777,1629.3,1628.6,27.93316426]
[1693924558605,6.13777,1629.3,1628.7,3.0]
[1693924558606,12.2756,1629.3,1628.7,3.0]
[1693924558930,18.41343,1629.3,1628.7,15.27963]
[1693924559268,6.13777,1629.3,1628.8,1.527963]
[1693924559441,6.13777,1629.3,1628.9,6.13892]
[1693924560167,6.13777,1629.3,1628.9,12.27803]
[1693924560736,12.2752,1629.3,1628.9,6.13892]
[1693924560931,18.4128,1629.3,1628.7,6.13979]
[1693924561166,1.84128,1629.2,1628.7,6.13979]
[1693924561366,6.13854,1629.1,1628.7,12.27965]
[1693924561656,12.27569,1629.3,1628.7,18.41951]
[1693924561872,12.27569,1629.3,1628.7,19.03191]
[1693924562344,18.41363,1629.3,1628.7,12.89205]
[1693924562772,18.41363,1629.3,1628.7,6.75219]
[1693924562988,20.442093,1629.3,1628.7,8.655398]
[1693924563170,20.442093,1629.3,1628.7,14.795258]
[1693924563371,18.41363,1629.3,1628.7,20.935118]
[1693924563676,18.41363,1629.3,1628.7,14.795258]
[1693924564233,20.28463,1629.3,1628.7,8.042998]
[1693924564439,1.871,1629.1,1628.6,6.13989]
[1693924564742,6.13892,1629.0,1628.6,12.27993]
[1693924565044,6.50150915,1629.0,1628.6,12.27993]
[1693924565256,6.50150915,1629.0,1628.8,12.27896]
[1693924565257,0.36258915,1629.0,1628.8,12.27896]
[1693924565872,6.13814,1629.2,1628.8,12.27896]
[1693924567866,6.13814,1629.2,1628.7,7.367473]
[1693924567867,23.35243426,1629.2,1628.7,1.227993]
[1693924568081,1.871,1629.1,1628.6,6.13993]
[1693924568292,6.13892,1629.0,1628.7,6.13982]
[1693924569394,15.34485426,1629.0,1628.5,8.85339]
[1693924569565,21.48377426,1629.0,1628.5,14.9937]
[1693924570466,6.1384,1629.1,1628.5,21.13432]
[1693924570663,9.20541426,1629.1,1628.6,2.113432]
[1693924570999,12.27703,1629.1,1628.7,6.13967]
[1693924571899,12.27703,1629.1,1628.7,12.27953]
[1693924572094,15.34404426,1629.1,1628.7,6.13967]
[1693924572404,15.34404426,1629.1,1628.6,12.27994]
[1693924572405,23.35367426,1629.1,1628.6,12.27994]
[1693924572701,26.46905969,1629.1,1628.6,6.13987]
[1693924573067,26.46905969,1629.1,1628.6,12.28011]
[1693924575429,4.93801426,1629.0,1628.3,40.56409302]
[1693924575588,12.27904,1628.8,1628.4,6.14066]
[1693924575916,8.01052,1628.8,1628.4,18.42238]
[1693924576086,8.01052,1628.8,1628.4,21.2704834]
[1693924577219,6.13952,1628.8,1628.4,21.2704834]
[1693924577785,3.06701426,1628.7,1628.3,2.6891]
[1693924577991,18.42086,1628.6,1628.1,6.75438]
[1693924578191,3.06701426,1628.5,1628.2,6.1415]
[1693924578431,12.28198,1628.4,1628.1,6.1419]
[1693924578617,21.48998426,1628.4,1627.9,6.14262]
[1693924578818,24.28909961,1628.4,1628.0,6.14247]
[1693924579403,24.28909961,1628.4,1628.0,12.28497]
[1693924580009,0.35947263,1628.3,1628.0,12.28497]
[1693924580208,6.50110263,1628.3,1628.0,12.28497]
[1693924581729,12.64273263,1628.3,1628.0,6.14247]
[1693924581917,12.64273263,1628.3,1628.0,12.28497]
[1693924583190,0.35947263,1628.3,1628.0,14.127729]
[1693924583395,0.35947263,1628.3,1628.0,20.270229]
[1693924583902,6.14032,1628.6,1628.0,21.49562875]
[1693924584228,6.13993,1628.7,1628.2,20.29732]
[1693924584431,0.35964238,1628.5,1628.2,21.52271975]
[1693924584651,0.35964238,1628.5,1628.3,2.15227198]
[1693924584825,0.35964238,1628.5,1628.4,18.42297]
[1693924585134,12.27931,1628.8,1628.4,18.42297]
[1693924585703,0.36038535,1628.7,1628.4,18.42297]
[1693924586043,6.13949,1628.8,1628.4,18.42297]
[1693924586216,6.13923,1628.9,1628.4,18.42297]
[1693924586217,12.27867,1628.9,1628.5,1.842297]
[1693924586415,15.34568426,1628.9,1628.6,12.2804]
[1693924589120,3.06701426,1628.8,1628.4,6.14091]
[1693924589324,6.13994,1628.7,1628.4,6.14091]
[1693924589531,12.27988,1628.7,1628.4,12.28184]
[1693924589944,12.27988,1628.7,1628.4,14.3393692]
[1693924590147,6.13994,1628.7,1628.4,20.4803592]
[1693924590349,9.20660426,1628.8,1628.4,20.4803592]
[1693924590350,15.34630426,1628.8,1628.4,20.4803592]
[1693924590649,9.20660426,1628.8,1628.4,20.4803592]
[1693924590848,6.13959,1628.8,1628.4,20.4803592]
[1693924591050,12.27863,1628.9,1628.5,2.04803592]
[1693924591353,15.34564426,1628.9,1628.6,12.28034]
[1693924591548,6.13923,1628.9,1628.6,12.28034]
[1693924591856,12.27845,1628.9,1628.6,6.14016]
[1693924592057,12.27845,1628.9,1628.5,14.32900592]
[1693924592218,12.27845,1628.9,1628.6,1.43290059]
[1693924592955,12.27845,1628.9,1628.6,6.14002]
[1693924593259,18.41779,1628.9,1628.5,6.14054]
[1693924593632,18.41779,1628.9,1628.5,6.14061]
[1693924594242,20.29079,1628.9,1628.5,6.14061]
[1693924595225,0.36019074,1628.8,1628.5,6.14061]
[1693924595417,6.13986,1628.7,1628.5,7.982832]
[1693924595853,12.27945,1628.8,1628.5,14.123452]
[1693924596254,12.27945,1628.8,1628.5,7.982832]
[1693924596653,18.41919,1628.8,1628.5,1.842222]
[1693924596895,18.41919,1628.8,1628.4,12.28156]
[1693924597068,18.41919,1628.8,1628.5,6.14052]
[1693924598491,12.27945,1628.8,1628.5,6.14052]
[1693924598867,12.27945,1628.8,1628.5,12.28114]
[1693924599067,6.13971,1628.8,1628.5,12.28114]
[1693924599265,6.13971,1628.8,1628.5,14.123331]
[1693924599585,6.13971,1628.8,1628.5,20.263951]
[1693924600619,6.13923,1628.9,1628.5,20.263951]
[1693924600822,12.27637,1629.2,1628.5,26.73812024]
[1693924601127,12.27637,1629.2,1628.7,18.41868]
[1693924601128,9.20517426,1629.2,1628.7,18.41868]
[1693924601493,15.34338426,1629.2,1628.7,18.41868]
[1693924603593,21.48159426,1629.2,1628.7,18.41868]
[1693924603793,3.06701426,1629.1,1628.7,12.27912]
[1693924604030,20.29047,1628.9,1628.5,14.43805]
[1693924604199,20.29047,1628.9,1628.5,14.43791]
[1693924604397,20.29047,1628.9,1628.5,8.29744]
[1693924604732,20.29047,1628.9,1628.5,14.43806]
[1693924605033,18.41747,1628.9,1628.5,14.43806]
[1693924605199,23.68408126,1628.9,1628.5,6.14034]
[1693924605397,23.68408126,1628.9,1628.5,12.28096]
[1693924605597,3.06701426,1628.9,1628.5,18.42158]
[1693924605798,6.13913,1628.9,1628.5,18.42158]
[1693924608627,12.27826,1628.9,1628.5,12.28096]
[1693924609834,0.31582804,1628.8,1628.5,12.28096]
[1693924610025,6.45539804,1628.8,1628.5,12.28096]
[1693924611437,0.31582804,1628.8,1628.5,14.423123]
[1693924611652,0.31582804,1628.8,1628.5,20.563743]
[1693924612003,6.13883,1629.0,1628.5,20.563743]
[1693924613015,12.27769,1629.0,1628.5,20.563743]
[1693924613215,13.23545612,1629.0,1628.5,20.563743]
[1693924613415,13.23545612,1629.0,1628.6,2.0563743]
[1693924613602,13.23545612,1629.0,1628.7,6.13985]
[1693924614911,14.51733101,1629.0,1628.7,6.13985]
[1693924615727,14.51733101,1629.0,1628.6,8.1964743]
[1693924616055,0.95776612,1628.9,1628.5,14.423113]
[1693924616253,12.27912,1628.8,1628.4,9.1408]
[1693924616463,18.41868,1628.8,1628.4,9.1408]
[1693924616624,13.23688612,1628.8,1628.4,15.28179]
[1693924617055,13.23688612,1628.8,1628.4,6.1408]
[1693924618057,13.23688612,1628.8,1628.4,12.28179]
[1693924618622,13.23688612,1628.8,1628.4,14.32535]
[1693924619956,13.7883074,1628.9,1628.4,14.32535]
[1693924619957,0.95776612,1628.9,1628.4,20.46634]
[1693924622426,7.09689612,1628.9,1628.4,20.46634]
[1693924625064,0.42621398,1628.8,1628.4,20.46634]
[1693924625267,0.42621398,1628.8,1628.6,1.873]
[1693924625474,0.42621398,1628.8,1628.7,18.41958]
[1693924625672,0.95776612,1629.0,1628.7,21.062837]
[1693924626541,0.95776612,1629.0,1628.7,6.13986]
[1693924626542,0.95776612,1628.9,1628.7,6.13986]
[1693924627044,0.95776612,1628.9,1628.7,12.27972]
[1693924628258,0.95776612,1628.9,1628.7,18.41958]
[1693924630871,0.95776612,1628.9,1628.7,12.27972]
[1693924631560,0.95776612,1628.9,1628.7,6.13986]
[1693924631955,7.09688612,1628.9,1628.7,6.13986]
[1693924632671,7.09688612,1628.9,1628.5,6.14054]
[1693924632672,0.95776612,1628.8,1628.5,6.14054]
[1693924632877,12.27972,1628.7,1628.4,6.14074]
[1693924633175,19.37734612,1628.7,1628.3,8.75919641]
[1693924633474,19.37734612,1628.7,1628.3,14.4021]
[1693924633778,6.13986,1628.7,1628.4,1.44021]
[1693924633949,6.13986,1628.7,1628.4,7.58106]
[1693924634140,12.27972,1628.7,1628.4,1.44021]
[1693924634501,13.23748612,1628.7,1628.3,12.28223]
[1693924634701,19.37734612,1628.7,1628.3,12.28223]
[1693924634893,13.23748612,1628.7,1628.3,12.28223]
[1693924637626,2.83076612,1628.6,1628.2,6.14157]
[1693924637785,7.09845612,1628.5,1628.2,6.14157]
[1693924637994,7.09845612,1628.5,1628.2,12.28332]
[1693924638677,6.14069,1628.5,1628.2,12.28332]
[1693924640012,0.42628423,1628.4,1628.2,12.28332]
[1693924644828,0.42628423,1628.4,1628.2,6.14157]
[1693924645196,0.42628423,1628.4,1628.2,12.28332]
[1693924646739,14.99039612,1628.6,1628.2,12.28332]
[1693924647036,4.94001426,1628.3,1627.6,3.82514617]
[1693924647195,4.94001426,1628.3,1627.8,6.14322]
[1693924647196,20.29863,1628.2,1627.8,6.14322]
[1693924647395,25.08534426,1628.2,1627.8,6.14322]
[1693924647602,27.79093869,1628.2,1627.8,6.14322]
[1693924648023,25.91793869,1628.2,1627.8,6.14322]
[1693924648333,19.77599869,1628.2,1627.8,12.28648]
[1693924649709,27.79093869,1628.2,1627.6,15.02775]
[1693924651837,27.79093869,1628.2,1627.6,21.17176]
[1693924652036,27.79093869,1628.2,1627.6,24.11445981]
[1693924653129,1.338,1628.1,1627.6,24.11445981]
[1693924653323,6.14268,1628.0,1627.6,24.11445981]
[1693924655035,6.14268,1628.0,1627.6,9.08649981]
[1693924655036,12.28536,1628.0,1627.6,9.08649981]
[1693924655237,0.42590412,1627.9,1627.6,6.1438]
[1693924655446,6.56900412,1627.9,1627.6,6.1438]
[1693924657144,6.56900412,1627.9,1627.6,12.28781]
[1693924657817,9.63601838,1627.9,1627.6,12.28781]
[1693924658015,0.42590412,1627.9,1627.6,12.28781]
[1693924658255,0.42590412,1627.9,1627.6,14.202246]
[1693924660468,0.42590412,1627.9,1627.6,20.346256]
[1693924660628,12.28451,1628.1,1627.6,20.346256]
[1693924661132,12.28451,1628.1,1627.6,21.684256]
[1693924662728,1.9706,1628.3,1627.6,26.792256]
[1693924662974,6.14154,1628.3,1627.8,1.338]
[1693924663257,6.14154,1628.3,1628.0,6.14239]
[1693924663846,12.28313,1628.3,1628.0,6.14239]
[1693924664361,6.56786397,1628.2,1628.0,6.14239]
[1693924664766,18.85141397,1628.2,1627.8,7.73162]
[1693924664972,18.85141397,1628.2,1627.8,6.14312]
[1693924665447,18.85141397,1628.2,1627.7,14.4996256]
[1693924665448,18.85141397,1628.2,1627.7,20.6431256]
[1693924665647,20.51201397,1628.2,1627.7,20.6431256]